bitfinex-derivatives/quotes_BNBF0:USTF0_20250807
["timestamp","ask_amount","ask_price","bid_price","bid_amount"]
[1754598579574,1.87591372,781.97,781.23,0.8553927]
[1754598579777,0.85891372,781.96,781.22,0.8553927]
[1754598579978,0.85891372,781.95,781.22,0.8553927]
[1754598580178,0.85891372,781.94,781.22,0.8553927]
[1754598580375,0.85891372,781.93,781.21,0.8553927]
[1754598580579,0.85891372,781.92,781.21,0.8553927]
[1754598580779,0.85891372,781.91,781.21,0.8553927]
[1754598581075,0.85891372,781.9,781.21,0.8553927]
[1754598581273,0.85891372,781.89,781.21,0.8553927]
[1754598581478,0.85891372,781.88,781.21,0.8553927]
[1754598581675,1.017,781.97,781.21,0.8553927]
[1754598581676,0.85891372,781.87,781.21,0.8553927]
[1754598581880,1.017,781.97,781.21,0.8553927]
[1754598582081,0.85836576,781.96,781.21,0.8553927]
[1754598582281,0.85836576,781.95,781.21,0.8553927]
[1754598582480,0.85836576,781.94,781.21,0.8553927]
[1754598582681,0.85836576,781.93,781.2,0.8553927]
[1754598582881,0.85836576,781.92,781.2,0.8553927]
[1754598583081,0.85836576,781.91,781.2,0.8553927]
[1754598583281,0.85836576,781.9,781.2,0.8553927]
[1754598583478,0.85836576,781.89,781.2,0.8553927]
[1754598583677,0.85836576,781.88,781.2,0.8553927]
[1754598583977,0.85836576,781.87,781.2,0.8553927]
[1754598584180,0.85836576,781.86,781.2,0.8553927]
[1754598584377,0.85836576,781.85,781.2,0.8553927]
[1754598584579,0.85836576,781.84,781.2,0.8553927]
[1754598584784,0.85836576,781.83,781.19,0.8553927]
[1754598585082,0.85836576,781.82,781.19,0.8553927]
[1754598585281,0.85836576,781.81,781.2,0.8553927]
[1754598585477,0.85836576,781.8,781.21,0.8553927]
[1754598585682,0.85836576,781.79,781.21,0.8553927]
[1754598585883,0.85836576,781.78,781.21,0.8553927]
[1754598586083,0.85801135,781.77,781.22,0.8553927]
[1754598586385,1.017,781.97,781.22,0.8553927]
[1754598586585,0.85794461,781.96,781.22,0.8553927]
[1754598586785,0.85794461,781.95,781.22,0.8553927]
[1754598587083,0.85794461,781.94,781.22,0.8553927]
[1754598587281,0.85794461,781.93,781.22,0.8553927]
[1754598587478,0.85794461,781.92,781.16,0.746]
[1754598587680,0.85794461,781.91,781.22,0.85338031]
[1754598587881,0.85794461,781.9,781.22,0.85338031]
[1754598588083,0.85794461,781.89,781.22,0.85338031]
[1754598588281,0.85794461,781.88,781.22,0.85338031]
[1754598588481,0.85794461,781.87,781.21,0.85338031]
[1754598588683,0.85794461,781.87,781.16,0.746]
[1754598588684,0.85794461,781.86,781.23,0.802]
[1754598588884,0.85794461,781.85,781.23,0.802]
[1754598589086,0.85794461,781.84,781.23,0.802]
[1754598589283,0.85794461,781.83,781.23,0.802]
[1754598589486,0.85794461,781.82,781.23,0.802]
[1754598589686,0.85794461,781.81,781.26,0.85338031]
[1754598589984,0.85794461,781.8,781.27,0.85338031]
[1754598590185,0.85794461,781.79,781.27,0.85338031]
[1754598590484,0.85794461,781.78,781.27,0.85338031]
[1754598590684,0.85794461,781.77,781.25,0.85338031]
[1754598590985,0.85774214,781.76,781.25,0.85338031]
[1754598591187,1.017,781.97,781.25,0.85338031]
[1754598591383,0.85774214,781.96,781.25,0.85338031]
[1754598591588,0.85770762,781.95,781.25,0.85338031]
[1754598591785,0.85770762,781.94,781.25,0.85338031]
[1754598592085,0.85770762,781.93,781.25,0.85338031]
[1754598592289,1.017,781.97,781.25,0.85338031]
[1754598592290,0.85770762,781.92,781.25,0.85338031]
[1754598592484,0.85770762,781.91,781.25,0.85338031]
[1754598592688,0.85770762,781.9,781.25,0.85338031]
[1754598592885,0.85770762,781.89,781.25,0.85338031]
[1754598593088,0.85770762,781.88,781.25,0.85338031]
[1754598593287,0.85770762,781.87,781.25,0.85338031]
[1754598593490,0.85770762,781.86,781.25,0.85338031]
[1754598593691,0.85770762,781.85,781.25,0.85338031]
[1754598593889,0.85770762,781.84,781.25,0.85338031]
[1754598594087,0.85765705,781.83,781.25,0.85338031]
[1754598594389,0.85765705,781.82,781.25,0.85338031]
[1754598594586,0.85765705,781.81,781.25,0.85338031]
[1754598594890,0.85765705,781.8,781.25,0.85338031]
[1754598595086,0.85765705,781.79,781.25,0.85338031]
[1754598595286,0.85765705,781.78,781.25,0.85338031]
[1754598595488,0.85765705,781.77,781.25,0.85338031]
[1754598595788,0.85765705,781.76,781.25,0.85338031]
[1754598595991,1.017,781.97,781.26,0.85338031]
[1754598596290,0.85762954,781.96,781.26,0.85338031]
[1754598596491,0.85762954,781.95,781.26,0.85338031]
[1754598596690,0.85762954,781.94,781.26,0.85338031]
[1754598596891,0.85762954,781.93,781.26,0.85338031]
[1754598597190,0.85762954,781.92,781.27,1.009]
[1754598597390,0.85762954,781.91,781.27,1.009]
[1754598597691,0.85762954,781.9,781.27,1.009]
[1754598597892,0.85762954,781.89,781.27,1.009]
[1754598598091,0.85762954,781.88,781.27,1.009]
[1754598598292,1.017,781.97,781.27,1.009]
[1754598598293,0.85762954,781.87,781.27,1.009]
[1754598598493,0.85762954,781.86,781.27,1.009]
[1754598598693,0.85762954,781.85,781.27,1.009]
[1754598598988,0.85762954,781.84,781.27,1.009]
[1754598599193,0.85762954,781.83,781.27,1.009]
[1754598599394,0.85762954,781.82,781.27,1.009]
[1754598599694,0.85762954,781.81,781.27,1.009]
[1754598599991,0.85871833,781.8,781.27,1.009]
[1754598600190,1.017,781.97,781.27,1.009]
[1754598600395,0.85871833,781.96,781.27,1.009]
[1754598600593,0.85871833,781.95,781.28,0.85338031]
[1754598600889,0.85871833,781.94,781.28,0.85338031]
[1754598601191,0.85871833,781.93,781.28,0.85338031]
[1754598601391,0.85871833,781.92,781.28,0.85338031]
[1754598601591,0.85871833,781.91,781.28,0.85338031]
[1754598601789,0.85871833,781.9,781.28,0.85338031]
[1754598601994,1.87718391,781.97,781.28,0.85338031]
[1754598602190,0.85871094,781.96,781.28,0.85338031]
[1754598602391,0.85871094,781.95,781.28,0.85338031]
[1754598602592,0.85871094,781.94,781.28,0.85338031]
[1754598602794,0.85871094,781.93,781.28,0.85338031]
[1754598602994,0.85871094,781.92,781.28,0.85338031]
[1754598603295,0.85871094,781.91,781.29,0.85338031]
[1754598603491,0.85871094,781.9,781.29,0.85338031]
[1754598603691,0.85871094,781.89,781.29,0.85338031]
[1754598603892,0.85871094,781.88,781.28,0.85338031]
[1754598604193,0.85871094,781.87,781.28,0.85338031]
[1754598604394,0.85871094,781.86,781.28,0.85338031]
[1754598604596,0.85871094,781.85,781.28,0.85338031]
[1754598604795,0.85871094,781.84,781.28,0.85338031]
[1754598604997,0.85871094,781.83,781.28,0.85338031]
[1754598605198,0.85871094,781.82,781.28,0.85338031]
[1754598605495,0.85871094,781.81,781.29,1.01]
[1754598605694,0.85871094,781.8,781.29,1.01]
[1754598605898,0.85871094,781.79,781.29,1.01]
[1754598606099,0.85871094,781.78,781.29,1.01]
[1754598606299,1.87718391,781.97,781.29,1.01]
[1754598606595,1.71894816,781.96,781.29,1.01]
[1754598606800,1.71894816,781.95,781.29,1.01]
[1754598607097,0.85876425,781.94,781.29,1.01]
[1754598607700,1.71894816,781.94,781.29,1.01]
[1754598607996,0.85887837,781.93,781.29,1.01]
[1754598608295,0.85887837,781.92,781.29,1.01]
[1754598608496,0.85887837,781.91,781.29,1.01]
[1754598608699,0.85887837,781.9,781.29,1.01]
[1754598608895,0.85887837,781.89,781.29,1.01]
[1754598609099,0.85887837,781.88,781.29,1.01]
[1754598609300,0.8588937,781.87,781.29,1.01]
[1754598609501,0.8588937,781.86,781.29,1.01]
[1754598609796,0.8588937,781.85,781.29,1.01]
[1754598610000,0.8588937,781.84,781.29,1.01]
[1754598610297,0.8588937,781.83,781.29,1.01]
[1754598610600,0.8588937,781.82,781.29,1.01]
[1754598610801,0.8588937,781.81,781.29,1.01]
[1754598611001,0.8588937,781.8,781.29,1.01]
[1754598611197,0.8588937,781.79,781.29,1.01]
[1754598611398,0.8588937,781.78,781.29,1.01]
[1754598611601,1.87718391,781.97,781.29,1.01]
[1754598611801,0.85890221,781.96,781.29,1.01]
[1754598611996,0.85890221,781.95,781.29,1.01]
[1754598612199,0.85890221,781.94,781.29,1.01]
[1754598612398,0.85890221,781.93,781.29,1.01]
[1754598612597,0.85890221,781.92,781.29,1.01]
[1754598612800,0.85890221,781.91,781.29,1.01]
[1754598613000,0.85890221,781.9,781.29,1.01]
[1754598613202,0.85890221,781.89,781.29,1.01]
[1754598613402,0.85890221,781.88,781.29,1.01]
[1754598613600,0.85890221,781.87,781.29,1.01]
[1754598613797,1.017,781.97,781.29,1.01]
[1754598613798,0.85890221,781.86,781.29,1.01]
[1754598614000,0.85890221,781.85,781.29,1.01]
[1754598614200,0.85890221,781.84,781.29,1.01]
[1754598614504,0.85890221,781.83,781.29,1.01]
[1754598614704,0.85890221,781.82,781.29,1.01]
[1754598614904,0.85890221,781.81,781.29,1.01]
[1754598615104,0.85890221,781.8,781.29,1.01]
[1754598615301,0.85890221,781.79,781.29,1.01]
[1754598615602,0.86018391,781.98,781.29,1.01]
[1754598615905,0.85891475,781.97,781.29,1.01]
[1754598616103,0.85891475,781.96,781.29,1.01]
[1754598616299,0.86018391,781.98,781.29,1.01]
[1754598616300,0.85891475,781.95,781.29,1.01]
[1754598616499,0.85891475,781.94,781.29,1.01]
[1754598616801,0.85891475,781.93,781.29,1.01]
[1754598616999,0.85890773,781.92,781.29,1.01]
[1754598617201,0.85890773,781.91,781.29,1.01]
[1754598617404,0.85890773,781.9,781.29,1.01]
[1754598617699,0.85890773,781.89,781.29,1.01]
[1754598617900,0.85890773,781.88,781.29,1.01]
[1754598618204,0.85890773,781.87,781.29,1.01]
[1754598618501,0.85890773,781.86,781.3,1.061]
[1754598618702,0.85890773,781.85,781.3,1.061]
[1754598618906,0.85890773,781.84,781.3,1.061]
[1754598619105,0.85890773,781.83,781.3,1.061]
[1754598619306,0.85890773,781.82,781.3,1.061]
[1754598619603,0.85890773,781.81,781.3,1.061]
[1754598619806,0.85890773,781.8,781.3,1.061]
[1754598620007,0.85890773,781.79,781.3,1.061]
[1754598620202,0.717,781.95,781.3,1.061]
[1754598620407,0.85888784,781.94,781.3,1.061]
[1754598620604,0.85888784,781.93,781.3,1.061]
[1754598620908,0.85888784,781.92,781.3,1.061]
[1754598621203,0.717,781.95,781.3,1.061]
[1754598621204,0.85888784,781.91,781.3,1.061]
[1754598621404,0.85888784,781.9,781.3,1.061]
[1754598621605,0.85888784,781.89,781.3,1.061]
[1754598621807,0.85888784,781.88,781.3,1.061]
[1754598622002,0.85888784,781.87,781.3,1.061]
[1754598622208,0.85888784,781.86,781.3,1.061]
[1754598622408,0.85888784,781.85,781.3,1.061]
[1754598622607,0.85888784,781.84,781.3,1.061]
[1754598622806,0.85888784,781.83,781.3,1.061]
[1754598623009,0.85888784,781.82,781.3,1.061]
[1754598623209,0.717,781.95,781.3,1.061]
[1754598623210,0.85888784,781.81,781.3,1.061]
[1754598623509,0.85888784,781.8,781.3,1.061]
[1754598623809,0.717,781.95,781.3,1.061]
[1754598623810,0.85888784,781.79,781.3,1.061]
[1754598624009,0.85888784,781.78,781.3,1.061]
[1754598624207,0.717,781.95,781.3,1.061]
[1754598624509,0.85890281,781.94,781.3,1.061]
[1754598624710,0.85890281,781.93,781.3,1.061]
[1754598624906,0.85890281,781.92,781.3,1.061]
[1754598625109,0.85890281,781.91,781.3,1.061]
[1754598625310,0.85890281,781.9,781.3,1.061]
[1754598625611,0.85890281,781.89,781.3,1.91438031]
[1754598625805,0.85890281,781.89,781.31,0.85338031]
[1754598626009,0.85891994,781.88,781.3,1.91438031]
[1754598626209,0.85891994,781.87,781.3,1.91438031]
[1754598626413,0.717,781.95,781.3,1.91438031]
[1754598626607,0.85893512,781.94,781.3,1.91438031]
[1754598626806,0.85893512,781.93,781.3,1.91438031]
[1754598627110,0.85893512,781.92,781.3,1.91438031]
[1754598627307,0.85893512,781.91,781.3,1.061]
[1754598627611,0.717,781.95,781.3,1.061]
[1754598627612,0.85893512,781.9,781.3,1.91438031]
[1754598627810,0.85893512,781.89,781.3,1.91438031]
[1754598628008,0.86018391,781.95,781.3,1.91438031]
[1754598628009,0.85893512,781.88,781.3,1.91438031]
[1754598628313,0.85893512,781.87,781.31,0.85338031]
[1754598628513,0.85893512,781.86,781.31,0.85338031]
[1754598628809,0.85893512,781.85,781.3,1.91438031]
[1754598629013,0.85899448,781.84,781.3,1.91438031]
[1754598629207,0.85899448,781.83,781.3,1.91438031]
[1754598629408,0.85899448,781.82,781.3,1.91438031]
[1754598629609,0.85899448,781.81,781.3,1.91438031]
[1754598629812,0.85899448,781.8,781.3,1.91438031]
[1754598630109,0.85899448,781.8,781.31,1.018]
[1754598630313,0.85899448,781.8,781.31,1.87138031]
[1754598631215,0.85899448,781.8,781.32,0.85338031]
[1754598632215,1.088,781.81,781.31,1.018]
[1754598635218,0.86078759,781.8,781.31,1.018]
[1754598635517,1.088,781.81,781.31,1.018]
[1754598635714,0.86078759,781.8,781.31,1.018]
[1754598636017,1.088,781.81,781.31,1.018]
[1754598636214,0.86078759,781.8,781.31,1.018]
[1754598636414,0.86078759,781.79,781.31,1.018]
[1754598636717,1.088,781.81,781.31,1.018]
[1754598637013,0.8611233,781.8,781.31,1.018]
[1754598637213,0.8611233,781.79,781.31,1.018]
[1754598637412,0.8611233,781.78,781.31,1.018]
[1754598637611,1.088,781.81,781.31,1.018]
[1754598637813,0.86135649,781.8,781.31,1.018]
[1754598638019,1.088,781.81,781.31,1.018]
[1754598638220,0.86135649,781.8,781.31,1.018]
[1754598638515,0.86135649,781.79,781.31,1.018]
[1754598638815,0.86135649,781.78,781.31,1.018]
[1754598639014,0.86135649,781.77,781.31,1.018]
[1754598639216,1.088,781.81,781.31,1.018]
[1754598639416,0.86167255,781.8,781.31,1.018]
[1754598642121,0.86167255,781.8,781.33,0.85834457]
[1754598643015,0.86167255,781.79,781.33,0.85834457]
[1754598643216,0.86167255,781.78,781.33,0.85834457]
[1754598643520,0.86167255,781.77,781.33,0.85834457]
[1754598643717,0.86167255,781.76,781.33,0.85834457]
[1754598644020,0.86318731,781.95,781.33,0.85834457]
[1754598644222,0.86318731,781.9,781.37,0.85834457]
[1754598644419,0.86171469,781.89,781.37,0.85834457]
[1754598644616,0.86173052,781.88,781.37,0.85834457]
[1754598644921,0.86173052,781.87,781.37,0.85834457]
[1754598645116,0.86173052,781.86,781.37,0.85834457]
[1754598645321,0.86173052,781.85,781.37,0.85834457]
[1754598645521,0.86173052,781.84,781.37,0.85834457]
[1754598645819,0.86173052,781.83,781.37,0.85834457]
[1754598646020,0.86173052,781.82,781.37,0.85834457]
[1754598646324,0.86173052,781.81,781.37,0.85834457]
[1754598646524,0.86173052,781.8,781.37,0.85834457]
[1754598646820,0.86173052,781.79,781.37,0.85834457]
[1754598647026,0.86173052,781.78,781.37,0.85834457]
[1754598647325,0.86173052,781.77,781.37,0.85834457]
[1754598647530,0.86173052,781.76,781.37,0.85834457]
[1754598647733,0.86173052,781.75,781.37,0.85834457]
[1754598648030,0.86173052,781.74,781.34,0.85834457]
[1754598648234,0.86173052,781.73,781.34,0.85834457]
[1754598648530,0.763,781.86,781.35,0.85834457]
[1754598648728,0.86178904,781.85,781.35,0.85834457]
[1754598649031,0.86178904,781.84,781.35,0.85834457]
[1754598649228,0.86178904,781.83,781.35,0.85834457]
[1754598649426,0.86178904,781.82,781.35,0.85834457]
[1754598649628,0.86178904,781.81,781.35,0.85834457]
[1754598649832,0.86178904,781.8,781.36,0.85834457]
[1754598650030,0.86178904,781.79,781.36,0.85834457]
[1754598650334,0.86178904,781.78,781.36,0.85834457]
[1754598650535,0.86178904,781.77,781.36,0.85834457]
[1754598650730,0.86178904,781.76,781.36,0.85834457]
[1754598651033,0.86178904,781.75,781.36,0.85834457]
[1754598651232,0.86178904,781.74,781.36,0.85834457]
[1754598651434,0.86178904,781.73,781.36,0.85834457]
[1754598651629,0.86178904,781.72,781.36,0.85834457]
[1754598651834,0.763,781.86,781.36,0.85834457]
[1754598652031,0.86183863,781.85,781.36,0.85834457]
[1754598652335,0.86183863,781.84,781.36,0.85834457]
[1754598652536,0.86183863,781.83,781.36,0.85834457]
[1754598652735,0.86183863,781.83,781.38,0.85834457]
[1754598653032,0.86185657,781.82,781.38,0.85834457]
[1754598653235,0.86185657,781.81,781.39,1.037]
[1754598653535,0.86187555,781.8,781.39,1.89534457]
[1754598653835,0.86187555,781.79,781.39,1.89534457]
[1754598654036,0.86187555,781.78,781.39,1.89534457]
[1754598654234,0.86187555,781.77,781.39,1.89534457]
[1754598654432,0.86187555,781.76,781.4,0.85834457]
[1754598654734,0.86187555,781.75,781.4,0.85834457]
[1754598654935,0.86187555,781.74,781.42,0.85834457]
[1754598655136,0.86187555,781.73,781.42,0.85834457]
[1754598655336,0.86187555,781.72,781.42,0.85834457]
[1754598655540,0.86187555,781.71,781.42,0.85834457]
[1754598655739,0.763,781.86,781.42,0.85834457]
[1754598655942,0.86192335,781.85,781.42,0.85834457]
[1754598656142,0.86192335,781.84,781.42,0.85834457]
[1754598656338,0.86192335,781.83,781.42,0.85834457]
[1754598656637,0.86192335,781.82,781.42,0.85834457]
[1754598656942,0.86192335,781.81,781.45,0.85834457]
[1754598657137,0.86192335,781.8,781.44,0.85834457]
[1754598657341,0.86192335,781.79,781.44,0.85834457]
[1754598657543,0.86192335,781.78,781.44,0.85834457]
[1754598657739,0.86192335,781.77,781.44,0.85834457]
[1754598657940,0.86192335,781.76,781.44,0.85834457]
[1754598658140,0.86192335,781.75,781.44,0.85834457]
[1754598658341,0.86192335,781.74,781.44,0.85834457]
[1754598658544,0.763,781.86,781.44,0.85834457]
[1754598658741,0.86182884,781.85,781.44,0.85834457]
[1754598658941,0.86182884,781.84,781.44,0.85834457]
[1754598659241,0.86182884,781.83,781.44,0.85834457]
[1754598659440,0.86182884,781.82,781.44,0.85834457]
[1754598659640,0.86182884,781.81,781.44,0.85834457]
[1754598659844,0.86182884,781.8,781.44,0.85834457]
[1754598660144,0.86182884,781.79,781.44,0.85834457]
[1754598660342,0.86182884,781.78,781.44,0.85834457]
[1754598660546,0.86182884,781.77,781.39,1.037]
[1754598660842,1.1469768,782.08,781.39,1.037]
[1754598660843,0.86182884,781.76,781.44,0.85891021]
[1754598661048,0.86182884,781.75,781.44,0.85891021]
[1754598661244,0.8626864,781.94,781.44,0.85891021]
[1754598661546,0.86142201,781.93,781.44,0.85891021]
[1754598661746,0.86142201,781.92,781.39,1.037]
[1754598661950,0.86142201,781.91,781.39,1.037]
[1754598662148,0.86142201,781.9,781.4,0.756]
[1754598662347,0.86142201,781.89,781.4,0.756]
[1754598662551,0.86142201,781.88,781.4,0.756]
[1754598662752,0.8626864,782.04,781.4,0.756]
[1754598662753,0.86142201,781.87,781.4,0.756]
[1754598662952,0.86142201,781.86,781.4,0.756]
[1754598663148,0.86142201,781.85,781.4,0.756]
[1754598663350,0.86142201,781.84,781.4,0.756]
[1754598663552,0.86142201,781.83,781.4,0.756]
[1754598663748,0.86142201,781.82,781.4,0.756]
[1754598663949,0.86129753,781.81,781.4,0.756]
[1754598664149,0.86129753,781.8,781.4,0.756]
[1754598664353,0.975,781.86,781.4,0.756]
[1754598664549,0.86124862,781.85,781.4,0.756]
[1754598664753,0.86124862,781.84,781.4,0.756]
[1754598664953,0.86124862,781.83,781.4,0.756]
[1754598665152,0.86124862,781.82,781.4,0.756]
[1754598665451,0.86124862,781.81,781.4,0.756]
[1754598665656,0.975,781.86,781.4,0.756]
[1754598665851,0.86120507,781.85,781.4,0.756]
[1754598666054,0.86120507,781.84,781.4,0.756]
[1754598666254,0.86120507,781.83,781.4,0.756]
[1754598666456,0.86120507,781.82,781.4,0.756]
[1754598666652,0.86120507,781.81,781.4,0.756]
[1754598666956,0.975,781.86,781.4,0.756]
[1754598667156,0.86116594,781.85,781.4,0.756]
[1754598667455,0.86116594,781.84,781.4,0.756]
[1754598667655,0.86116594,781.83,781.4,0.756]
[1754598667851,0.86116594,781.82,781.4,0.756]
[1754598668053,0.86116594,781.81,781.4,0.756]
[1754598668252,0.975,781.86,781.4,0.756]
[1754598668456,0.86110957,781.85,781.4,0.756]
[1754598668659,0.86110957,781.84,781.4,0.756]
[1754598668951,0.86110957,781.83,781.4,0.756]
[1754598669158,0.86110957,781.82,781.4,0.756]
[1754598669358,0.86110957,781.81,781.4,0.756]
[1754598669557,0.975,781.86,781.4,0.756]
[1754598669761,0.86108474,781.85,781.4,0.756]
[1754598669960,0.86108474,781.84,781.4,0.756]
[1754598670160,0.86108474,781.83,781.4,0.756]
[1754598670357,0.86108474,781.82,781.4,0.756]
[1754598670561,0.86108474,781.81,781.4,0.756]
[1754598670758,0.975,781.86,781.4,0.756]
[1754598671060,0.86106275,781.85,781.4,0.756]
[1754598671257,0.86106275,781.84,781.4,0.756]
[1754598671462,0.86106275,781.83,781.4,1.61491021]
[1754598671761,0.86106275,781.82,781.4,1.61491021]
[1754598671958,0.86106275,781.81,781.4,1.61491021]
[1754598672161,0.86106275,781.8,781.4,1.61491021]
[1754598672460,0.86106275,781.79,781.4,0.756]
[1754598672658,0.975,781.86,781.4,0.756]
[1754598672856,0.86102585,781.85,781.4,0.756]
[1754598673061,0.86102585,781.84,781.4,0.756]
[1754598673357,0.86102585,781.83,781.4,0.756]
[1754598673561,0.86102585,781.82,781.4,0.756]
[1754598673761,0.86102585,781.81,781.4,0.756]
[1754598673957,0.86102585,781.8,781.4,0.756]
[1754598674262,0.86102585,781.79,781.4,0.756]
[1754598674462,0.975,781.86,781.4,0.756]
[1754598674762,0.86098768,781.85,781.4,0.756]
[1754598675061,0.86098768,781.84,781.4,0.756]
[1754598675262,0.86098768,781.83,781.4,1.61491021]
[1754598675561,0.975,781.86,781.4,1.61491021]
[1754598675757,0.86097045,781.85,781.4,1.61491021]
[1754598675960,0.86097045,781.84,781.4,1.61491021]
[1754598676157,0.86097045,781.83,781.4,1.61491021]
[1754598676358,0.86097045,781.82,781.4,1.61491021]
[1754598676558,0.86097045,781.81,781.4,1.61491021]
[1754598676761,0.86097045,781.8,781.4,1.61491021]
[1754598676957,0.86097045,781.79,781.4,1.61491021]
[1754598677256,0.975,781.86,781.4,1.61491021]
[1754598677562,0.86094223,781.85,781.4,1.61491021]
[1754598677756,0.86094223,781.84,781.4,1.61491021]
[1754598678058,0.86094223,781.83,781.4,1.61491021]
[1754598678362,0.86094223,781.82,781.4,0.756]
[1754598678760,0.86093281,781.81,781.4,0.756]
[1754598678960,0.86093281,781.8,781.4,0.756]
[1754598679160,0.86093281,781.79,781.4,0.756]
[1754598679359,0.8626864,782.0,781.4,0.756]
[1754598679560,0.86092413,781.99,781.4,0.756]
[1754598679860,0.86092413,781.98,781.4,0.756]
[1754598680560,1.72361053,781.98,781.4,1.61491021]
[1754598680764,0.86092413,781.97,781.4,1.61491021]
[1754598680965,0.86092413,781.96,781.4,1.61491021]
[1754598681167,0.86092413,781.95,781.4,1.61491021]
[1754598681463,0.86092413,781.94,781.4,1.61491021]
[1754598681660,0.86092413,781.93,781.4,1.61491021]
[1754598681861,0.86092413,781.92,781.4,1.61491021]
[1754598682161,0.86092413,781.91,781.4,1.61491021]
[1754598682362,0.86092413,781.9,781.41,0.85891021]
[1754598682563,0.86092413,781.89,781.41,0.85891021]
[1754598682765,0.86092413,781.88,781.41,0.85891021]
[1754598683065,0.86092413,781.87,781.41,0.85891021]
[1754598683268,0.86092413,781.86,781.41,0.85891021]
[1754598683466,0.86092413,781.85,781.41,0.85891021]
[1754598683667,0.86092413,781.84,781.4,0.756]
[1754598683863,0.86092413,781.83,781.4,0.756]
[1754598684067,0.86092413,781.82,781.41,0.855]
[1754598684269,0.86094395,781.81,781.41,0.855]
[1754598684463,0.86094395,781.8,781.41,0.855]
[1754598684665,0.86094395,781.79,781.41,0.855]
[1754598684864,0.86094395,781.78,781.41,0.855]
[1754598685063,0.86094395,781.77,781.41,0.855]
[1754598685266,0.86094395,781.76,781.41,0.855]
[1754598685467,0.8626864,781.97,781.41,0.855]
[1754598685668,0.86096265,781.96,781.41,0.855]
[1754598685864,0.86096265,781.95,781.41,0.855]
[1754598686170,0.8626864,781.93,781.41,0.855]
[1754598686465,0.86096265,781.92,781.41,0.855]
[1754598687566,0.8626864,781.88,781.41,0.855]
[1754598687768,0.767,781.99,781.41,0.855]
[1754598687769,0.8626864,781.85,781.41,0.855]
[1754598687972,0.8609785,781.84,781.41,0.855]
[1754598688167,0.8609785,781.83,781.41,0.855]
[1754598688371,0.8609785,781.82,781.41,0.855]
[1754598688572,0.8609785,781.81,781.41,0.855]
[1754598688873,0.8609785,781.8,781.41,0.855]
[1754598689073,0.8609785,781.79,781.41,0.855]
[1754598689272,0.8609785,781.78,781.41,0.855]
[1754598689471,0.8609785,781.77,781.41,0.855]
[1754598689773,0.767,781.99,781.41,0.855]
[1754598689774,0.8626864,781.84,781.41,0.855]
[1754598689974,0.767,781.99,781.41,0.855]
[1754598689975,1.72357918,781.83,781.41,0.855]
[1754598690174,0.86089278,781.82,781.41,0.855]
[1754598690375,0.86089278,781.81,781.41,0.855]
[1754598690672,0.86076488,781.8,781.41,0.855]
[1754598690971,0.86076488,781.79,781.41,0.855]
[1754598691175,0.86076488,781.78,781.41,0.855]
[1754598691374,0.86076488,781.77,781.41,0.855]
[1754598691671,0.86076488,781.76,781.41,0.855]
[1754598691874,0.86076488,781.75,781.41,0.855]
[1754598692069,0.86076488,781.74,781.41,0.855]
[1754598692269,0.86076488,781.73,781.41,0.855]
[1754598692572,0.86076488,781.72,781.42,1.002]
[1754598692773,0.86076488,781.71,781.42,1.002]
[1754598692971,0.8626864,781.85,781.42,1.002]
[1754598693169,0.86054206,781.84,781.42,1.002]
[1754598693374,0.86054206,781.83,781.42,1.002]
[1754598693570,0.86054206,781.82,781.42,1.002]
[1754598693771,0.8626864,781.8,781.42,1.002]
[1754598693974,0.86054206,781.79,781.42,1.002]
[1754598694576,0.86054206,781.78,781.42,1.002]
[1754598694772,0.86054206,781.77,781.42,1.002]
[1754598694973,0.86054206,781.76,781.42,1.002]
[1754598695172,0.86054206,781.75,781.42,1.002]
[1754598695374,0.86054206,781.74,781.42,1.002]
[1754598695572,0.86054206,781.73,781.42,1.002]
[1754598695772,0.86054206,781.72,781.42,1.002]
[1754598695973,0.86054206,781.71,781.42,1.002]
[1754598696274,0.86054206,781.7,781.42,1.002]
[1754598696578,0.8626864,781.83,781.42,1.002]
[1754598696777,0.85984207,781.82,781.42,1.002]
[1754598697079,0.8626864,781.83,781.42,1.002]